Cogmind - Beta 13 @@@ ROGUE MODE // 2024.03.31 @ 20:27:41 Player: sportsracer48 Result: Destroyed by G-47 Trooper with Particle Gun Performance ------------- Evolutions (0) 0 Regions Visited (2) 400 Robots Destroyed (10) 50 Value Destroyed (267) 267 Prototype IDs (0) 0 Alien Tech Used (0) 0 Bonus (0) 0 TOTAL SCORE: 717 Bonus ------- None Cogmind --------- Core Integrity 0/250 Matter 242/650 Energy 85/100 System Corruption 0% Temperature Cool (9) Movement Walking (120) Location -10/Mines Parts ------- > --- POWER (1) -------- (None) > --- PROPULSION (2) --- Aluminum Leg > --- UTILITY (2) ------ Large Matter Pod High-capacity Matter Pod > --- WEAPON (2) ------- (None) > --- INVENTORY (5) ---- Light Ion Engine Aluminum Leg Grenade Launcher Peak State ------------ > --- POWER ------------ (None) > --- PROPULSION ------- Wheel Wheel > --- UTILITY ---------- Large Matter Pod High-capacity Matter Pod > --- WEAPON ----------- Grenade Launcher Grenade Launcher > --- INVENTORY -------- Light Ion Engine Aluminum Leg Aluminum Leg Grenade Launcher [Rating: 6] Favorites ----------- Power None Propulsion Wheel Leg Aluminum Leg Wheel Wheel Utility Large Matter Pod Storage Large Matter Pod Weapon Grenade Launcher Launcher Grenade Launcher Build | -11 -10 -10 ------- Run | Yrd Mat Min Slots Evolved . | . . . Power . | . . . Propulsion . | . . . Utility . | . . . Weapon . | . . . Parts Attached 9 | 2 6 1 Power . | . . . Engine . | . . . Core . | . . . Reactor . | . . . Propulsion 3 | 2 . 1 Treads . | . . . Leg 1 | . . 1 Wheel 2 | 2 . . Hover . | . . . Flight . | . . . Utility 3 | . 3 . Device . | . . . Storage 3 | . 3 . Processor . | . . . Hackware . | . . . Protection . | . . . Artifact . | . . . Weapon 3 | . 3 . Energy Gun . | . . . Energy Cannon . | . . . Ballistic Gun . | . . . Ballistic Cannon . | . . . Launcher 3 | . 3 . Special Weapon . | . . . Impact Weapon . | . . . Slashing Weapon . | . . . Piercing Weapon . | . . . Special Melee Weapon . | . . . Unidentified Prototypes . | . . . Parts Lost 4 | . . 4 Power . | . . . Propulsion 2 | . . 2 Utility . | . . . Weapon 2 | . . 2 Highest Loss Streak 4 | . . 4 To Critical Strikes . | . . . Average Slot Usage (%) 61 | . 53 80 Wheel 27 | . 28 25 Storage 18 | . 14 28 Launcher 15 | . 10 26 Naked Turns . | . . . Heaviest Build 13 | . 13 13 Greatest Support 20 | 20 20 20 Greatest Overweight (x) 1 | . . 1 Average Overweight (x) . | . . . Largest Inventory Capacity 5 | 5 5 5 Average Capacity 5 | 5 5 5 Most Carried 5 | 3 5 4 Average Carried 3 | 2 3 3 Final Capacity 5 | 5 5 5 Final Carried 4 | 3 4 3 Class Distribution -------------------- 100% | Mutant Dominant Class ---------------- Mutant | -10/Materials Mutant | -10/Mines Resources | -11 -10 -10 ----------- Run | Yrd Mat Min Matter Collected 442 | 220 151 71 Remotely . | . . . Salvage Created 92 | . 12 80 Parts 10 | . 3 7 Haulers Intercepted . | . . . Recyclers Shooed . | . . . Parts Field Recycled . | . . . Retrieved Matter . | . . . Parts Self-Destructed . | . . . Prevented . | . . . Kills | -11 -10 -10 ------- Run | Yrd Mat Min Combat Hostiles Destroyed 8 | . 3 5 AOE 8 | . 3 5 Classes Destroyed 4 | . 2 2 Builder 1 | . . 1 Watcher 1 | . 1 . Swarmer 3 | . 3 . Grunt 5 | . . 5 Best Kill Streak 4 | . 4 4 Combat Bots Only 3 | . 3 3 Max Kills in Single Turn 2 | . 2 2 Gunslinging . | . . . Exploded 1 | . 1 1 Melee . | . . . Uniques/NPCs Destroyed . | . . . Combat | -11 -10 -10 -------- Run | Yrd Mat Min Hostile Shots Fired 52 | 2 17 33 Missed 18 | . 8 10 Damage Taken 522 | 22 113 387 Core 250 | . 61 189 Absorbed by Shields . | . . . Core Remaining (%) 100 | 100 . . Volleys Fired 17 | . 8 9 Largest 2 | . 1 2 Hottest 60 | . 30 60 Shots Fired 23 | . 8 15 Gun . | . . . Cannon . | . . . Launcher 23 | . 8 15 Special . | . . . Kinetic . | . . . Thermal . | . . . Explosive 23 | . 8 15 Electromagnetic . | . . . Robot Hit Streak 5 | . 3 5 Robot Miss Streak 1 | . 1 1 Penetration Max . | . . . Secondary Targets . | . . . Shots Hit Robots 14 | . 5 9 Core Hits 25 | . 6 19 Critical Kills . | . . . Critical Parts Destroyed . | . . . Critical Strikes . | . . . Melee Attacks . | . . . Impact . | . . . Slashing . | . . . Piercing . | . . . Sneak Attacks . | . . . Combat Hostiles . | . . . Follow-up Attacks . | . . . Damage Inflicted 1233 | . 409 824 Guns . | . . . Cannons . | . . . Explosions 1233 | . 409 824 Melee . | . . . Ramming . | . . . Kinetic . | . . . Thermal . | . . . Explosive 1233 | . 409 824 Electromagnetic . | . . . Impact . | . . . Slashing . | . . . Piercing . | . . . Highest Corruption . | . . . Average Corruption . | . . . Corruption Purged . | . . . Corruption Blocked . | . . . Overload Shots . | . . . Overflow Damage 5 | . 5 . Projectiles . | . . . Explosions 5 | . 5 . Melee . | . . . Knockbacks . | . . . Impact . | . . . Kinetic . | . . . Secondary . | . . . Self-Inflicted Damage 95 | . 50 45 Shots 10 | . 5 5 Rammed . | . . . Targets Rammed . | . . . Kicked . | . . . Crushed . | . . . Highest Temperature 32 | . . 32 Average Temperature 16 | . . 16 Received Heat Transfer 207 | 12 . 195 Siege Activations . | . . . Robots Corrupted . | . . . Combat Hostiles . | . . . Parts Fried . | . . . Impact Corruptions . | . . . Robots Melted . | . . . Combat Hostiles . | . . . Parts Melted . | . . . Heat Transferred . | . . . Parts Sabotaged . | . . . Parts Stolen . | . . . Parts Stripped . | . . . Power Chain Reactions . | . . . Alert | -11 -10 -10 ------- Run | Yrd Mat Min Peak Influence 317 | . 262 317 Initial 102 | . . 102 Average 150 | . 152 217 Maximum Alert Level 1 | . 1 1 Low Security (%) 54 | 100 43 62 Level 1 45 | . 56 38 Level 2 . | . . . Level 3 . | . . . Level 4 . | . . . Level 5 . | . . . High Security . | . . . Max Security . | . . . Squads Dispatched 1 | . 1 . Investigation . | . . . Extermination . | . . . Reinforcement 1 | . 1 . Assault . | . . . Garrison . | . . . Intercept . | . . . Searches Triggered . | . . . Construction Impeded . | . . . Haulers Reinforced . | . . . Active Scanning Responses . | . . . Cargo Convoy Interrupts . | . . . Stealth | -11 -10 -10 --------- Run | Yrd Mat Min Distress Signals 2 | . 2 . Communications Jammed . | . . . Distress Signals . | . . . Times Spotted 17 | 1 8 8 Peak Tracking Total 6 | 1 5 6 Tactical Retreats 2 | . 1 1 Traps | -11 -10 -10 ------- Run | Yrd Mat Min Traps Triggered . | . . . Indirectly . | . . . Trap Hack Attempts . | . . . Triggered . | . . . Disarmed . | . . . Reprogrammed . | . . . Reused . | . . . Traps Extracted . | . . . Installed . | . . . Triggered . | . . . Machines | -11 -10 -10 ---------- Run | Yrd Mat Min Machines Disabled 2 | . 2 . Max in Single Turn 1 | . 1 . Machines Repaired . | . . . Machines Dismantled . | . . . Machines Sabotaged . | . . . Overloaded Fab Kills . | . . . Hacking | -11 -10 -10 --------- Run | Yrd Mat Min Machines Accessed 2 | . 2 . Terminals 2 | . 2 . Fabricators . | . . . Repair Stations . | . . . Recycling Units . | . . . Scanalyzers . | . . . Garrison Access . | . . . Total Hacks 4 | . 4 . Successful 2 | . 2 . Failed 2 | . 2 . Catastrophic . | . . . Database Lockouts . | . . . Manual . | . . . Terminals 4 | . 4 . Fabricators . | . . . Repair Stations . | . . . Recycling Units . | . . . Scanalyzers . | . . . Garrison Access . | . . . Terminal Hacks 2 | . 2 . Locate Traps 1 | . 1 . Zone Layout 1 | . 1 . Fabricator Hacks . | . . . Repair Station Hacks . | . . . Recycling Unit Hacks . | . . . Scanalyzer . | . . . Garrison Access Hacks . | . . . Unauthorized Hacks . | . . . Terminals . | . . . Fabricators . | . . . Repair Stations . | . . . Recycling Units . | . . . Scanalyzers . | . . . Garrison Access . | . . . Data Cores Recovered . | . . . Used . | . . . Hacking Detections 1 | . 1 . Full Trace Events . | . . . Feedback Events . | . . . Feedback Blocked . | . . . Robot Schematics Acquired . | . . . Robots Built . | . . . Authchips . | . . . Time . | . . . Total Robot Build Rating . | . . . Part Schematics Acquired . | . . . Parts Built . | . . . Authchips . | . . . Time . | . . . Total Part Build Rating . | . . . Parts Repaired . | . . . Time . | . . . Parts Recycled . | . . . Recycled Matter . | . . . Retrieved Matter . | . . . Retrieved Components . | . . . Parts Scanalyzed . | . . . Part Schematics Acquired . | . . . Parts Damaged . | . . . Bothacking | -11 -10 -10 ------------ Run | Yrd Mat Min Used RIF Installer . | . . . Robots Hacked . | . . . Non-combat . | . . . Combat . | . . . Robot Hacks Applied . | . . . Relay Couplers Released . | . . . Fabnet Peak Effective % . | . . . Robots Rewired . | . . . Allies Hacked . | . . . Hacks Repelled . | . . . Allies | -11 -10 -10 -------- Run | Yrd Mat Min Total Allies . | . . . Largest Group . | . . . Highest-Rated Group . | . . . Highest-Rated Ally . | . . . Total Orders . | . . . Ally Attacks . | . . . Total Damage . | . . . Kills . | . . . Allies Corrupted . | . . . Allies Melted . | . . . Intel | -11 -10 -10 ------- Run | Yrd Mat Min Robot Analysis Total . | . . . Derelict Logs Recovered . | . . . Drone Launches . | . . . Drone Recoveries . | . . . Exploration | -11 -10 -10 ------------- Run | Yrd Mat Min Turns Passed 392 | 46 246 100 Spaces Moved 419 | 55 271 93 Core 17 | 17 . . Treads . | . . . Legs . | . . . Wheels 402 | 38 271 93 Hover . | . . . Flight . | . . . Fastest Speed 50 | 50 80 80 Average Speed 78 | 70 80 80 Slowest Speed 95 | 80 80 95 Overloaded Moves . | . . . Propulsion Burnouts . | . . . Robots Hopped . | . . . Cave-ins Triggered . | . . . Exploration Rate (%) 25 | 6 50 21 Regions Visited 2 Branch Regions 1 Pre-discovered Areas . | . . . Known Exits Taken . | . . . Unknown Exits Taken 2 | 1 1 . Scrap Searched . | . . . Spaces Dug . | . . . Terrain Destroyed 126 | . 63 63 Melee . | . . . Projectile . | . . . AOE 126 | . 63 63 Terrain Rammed . | . . . Walls Destroyed . | . . . Machines Disabled . | . . . Actions | -11 -10 -10 --------- Run | Yrd Mat Min Total 455 | 61 291 103 Wait . | . . . Move 417 | 54 270 93 Hop . | . . . Pick Up 10 | 5 5 . Fast Attach 1 | . 1 . Attach 7 | 2 4 1 Detach 1 | . 1 . Swap 1 | . 1 . Drop 1 | . 1 . Fire 17 | . 8 9 Melee . | . . . Ram . | . . . Kick . | . . . Crush . | . . . Escape Stasis . | . . . Rewire . | . . . Trap . | . . . Miscellaneous . | . . . Route ------- -11/Scrapyard -10/Materials -10/Mines History --------- Turn | Location | Event 2 | -11/Scrapyard | Met Revision 17 39 | -11/Scrapyard | Discovered new exit (range 8) 47 | -11/Scrapyard | Entered Materials 279 | -10/Materials | Discovered new exit (range 16) 293 | -10/Materials | Entered Mines 318 | -10/Mines | Build established: Mutant 372 | -10/Mines | Core integrity fell below 50% 390 | -10/Mines | Core integrity fell below 20% 393 | -10/Mines | Destroyed by G-47 Trooper with Particle Gun Last Messages --------------- EXIT=FOUND LOCATION=UNKNOWN GOAL=ESCAPE When the line of fire is red, you are attempting to shoot through an object at another target, which incurs significant penalties. G-34 Mercenary destroyed. G-47 Trooper destroyed. Acquired 9 matter. The unstable cave ceiling collapses. Acquired 62 matter. U-05 Engineer destroyed. G-34 Mercenary destroyed. Wheel destroyed. G-34 Mercenary destroyed. Grenade Launcher destroyed. G-47 Trooper destroyed. The unstable cave ceiling collapses. Grenade Launcher destroyed. Wheel destroyed. Map ----- +----------------------------------------------------+ | ?????????????????????????????????????????????????? | | ?????????????????????????????????????????????????? | | ?????????????????????????????????????????????????? | | ?????????????????????????????????????????????????? | | ?????????????????????????????????????????????????? | | ?????????????????????????????????????????????????? | | ?????????????????????????????????????????????????? | | ?????????????????????????????????????????????????? | | ?????????????????????????????????????????????????? | | ????????????????????????????? ????????????????? | | ????????????????????????????? ??????????????? | | ???????????????????????????? ?????????????? | | ??????????????????????????????# ???????????? | | ??????????????????????????????# #######???? | | ??????????????????????????????# ## #???? | | ??????????????????????????????# #?# #???? | | ??????????????????????????????# #?######## #???? | | ??????????????????????????????# #?# #???? | | ??????????????????????????????# #?# #???? | | ????????????????????????????###= ### ########???? | | ????????????????????????????# ! ## #??????????? | | ????????????????????????????# ##?????????? | | ???????????????????????#???## ##????????? | | ???????????????????????# ?## gg = #????????? | | ?????????????????####### ## g #????????? | | ????????????????# @ ###????????? | | ????????????????# ######## #?????????? | | ?????????????????????????## # ! #?????????? | | ??????????????????????????##### ##?????????? | | ????????????????????????????????# ##????????? | | ????????????????????????????????# #????????? | | ????????????????????????????????# #????????? | | ????????????????#???#######?????## ##????????? | | ??????????????### ### ##?????##### #?????????? | | ??????????????? ########### #?????????? | | ???????????????# ??# ?# #?????????? | | ???????????????# #??# ### ##########?????????? | | ??????????????## #??# #?## ####??????????? | | ??????????????# ??### ####### # #??????????? | | ??????????????# ##??# #### ##?????????? | | ??????????????# #### #?????????? | | ???????????????# #### # #?????????? | | ???????????????## ### #??# = #?????????? | | ????????????????## #?# # ##?????????? | | ?????????????????## ##?##### ## #??????????? | | ??????????????????###??????# #??????????? | | ???????????????????????????#### #??????????? | | ??????????????????????????????## ##??????????? | | ???????????????????????????????#######???????????? | | ?????????????????????????????????????????????????? | +----------------------------------------------------+ Best States ------------- Heat Dissipation 25 Energy Generation 5 Energy Capacity 100 Matter Stores 331 Matter Capacity 650 Sight Range 16 Terrain Scan Density 10 Evasion (%) 50 Item Schematics ----------------- None Robot Schematics ------------------ None Fabricated ------------ Nothing Alien Tech Used ----------------- None Achievements -------------- None Challenges ------------ None Game ------ Seed WeaponTiamatScrap Manual? 0 Play Time 00:12:29 Cumulative 0.8 hours Start 2024.03.31 @ 20:16:10 End 2024.03.31 @ 20:27:41 Sessions 1 Manual Loads 0 Difficulty Rogue Special Mode None Game No. 2 Rogue 2 Adventurer 0 Explorer 0 Win Type - Total 0 Types 0/0/0/0/0/0/0/0/0 Lore% 0 Gallery% 2 Achievement% 8 Wizard Run 0 Options --------- Layout 1 ASCII 0 Keyboard 0 Movement Numpad Keybinds 0 Fullscreen 1 Font 48/Proggy Map View 50x35 Zoom Use 0% Tactical HUD 0 Map Filters NONE Filters NONE Steam 1 RUN: bd32fcf3-e03b-4a2f-b6ac-8e78da551606